lending/lending_fUSD_20240401
["ID","MTS","AMOUNT","RATE_DAILY","PERIOD"]
[321219733,1711987840661,-500.0,0.00055068,120]
[321219735,1711987840670,-500.0,0.00055068,120]
[321219737,1711987840680,-184.50696509,0.00055068,120]
[321219740,1711987840690,-500.0,0.00055068,120]
[321219742,1711987840700,-500.0,0.00055068,120]
[321219744,1711987840709,-500.0,0.00055068,120]
[321219746,1711987840719,-500.0,0.00055068,120]
[321219748,1711987840728,-500.0,0.00055068,120]
[321219749,1711987840737,-500.0,0.00055068,120]
[321219752,1711987840748,-831.92,0.00055068,120]
[321219754,1711987840757,-331.71196405,0.00055068,120]
[321219756,1711987840767,-561.42,0.00055068,120]
[321219758,1711987840779,-150.0,0.00055121,120]
[321219760,1711987840788,-2395.70672982,0.0005534,4]
[321219762,1711987840798,-500.0,0.00055342,120]
[321219764,1711987840807,-274.4,0.00055342,120]
[321219766,1711987840816,-500.0,0.00055342,120]
[321219767,1711987840827,-500.0,0.00055342,120]
[321219770,1711987840836,-228.61,0.00055342,120]
[321219771,1711987840846,-500.0,0.00055342,120]
[321219773,1711987840855,-500.0,0.00055342,120]
[321219775,1711987840864,-500.0,0.00055342,120]
[321219777,1711987840874,-500.0,0.00055342,120]
[321219780,1711987840884,-500.0,0.00055342,120]
[321219781,1711987840894,-688.54,0.00055342,120]
[321219784,1711987840904,-607.93613744,0.00055342,120]
[321219785,1711987840914,-500.0,0.00055342,120]
[321219788,1711987840923,-500.0,0.00055342,120]
[321219790,1711987840933,-500.0,0.00055342,120]
[321219792,1711987840943,-811.44,0.00055342,120]
[321219808,1711987841092,-500.0,0.00055342,120]
[321219810,1711987841102,-500.0,0.00055342,120]
[321219812,1711987841112,-514.1,0.00055342,120]
[321219815,1711987841122,-500.0,0.00055342,120]
[321219816,1711987841131,-500.0,0.00055342,120]
[321219819,1711987841141,-500.0,0.00055342,120]
[321219821,1711987841150,-500.0,0.00055342,120]
[321219823,1711987841159,-500.0,0.00055342,120]
[321219825,1711987841169,-495.82589068,0.00055342,120]
[321219827,1711987841178,-500.0,0.00055342,120]
[321219828,1711987841187,-586.06,0.00055342,120]
[321219830,1711987841196,-500.0,0.00055342,120]
[321219833,1711987841206,-500.0,0.00055342,120]
[321219834,1711987841215,-500.0,0.00055342,120]
[321219836,1711987841224,-500.0,0.00055342,120]
[321219838,1711987841233,-500.0,0.00055342,120]
[321219840,1711987841242,-500.0,0.00055342,120]
[321219842,1711987841252,-1010.61,0.00055342,120]
[321219845,1711987841261,-500.0,0.00055342,120]
[321219846,1711987841271,-500.0,0.00055342,120]
[321219849,1711987841280,-500.0,0.00055342,120]
[321219851,1711987841290,-500.0,0.00055342,120]
[321219853,1711987841299,-515.17,0.00055342,120]
[321219855,1711987841308,-460.01,0.00055342,120]
[321219857,1711987841318,-500.0,0.00055342,120]
[321219858,1711987841328,-500.0,0.00055342,120]
[321219861,1711987841337,-500.0,0.00055342,120]
[321219863,1711987841346,-500.0,0.00055342,120]
[321219865,1711987841355,-831.92,0.00055342,120]
[321219866,1711987841364,-557.55,0.00055368,2]
[321219869,1711987841373,-838.30116868,0.00055616,2]
[321219870,1711987841382,-500.0,0.00055616,120]
[321219872,1711987841391,-500.0,0.00055616,120]
[321219875,1711987841400,-517.45,0.00055616,120]
[321219876,1711987841410,-500.0,0.00055616,120]
[321219878,1711987841419,-500.0,0.00055616,120]
[321219880,1711987841428,-500.0,0.00055616,120]
[321219882,1711987841438,-575.59,0.00055616,120]
[321219884,1711987841447,-500.0,0.00055616,120]
[321219886,1711987841456,-688.54,0.00055616,120]
[321219888,1711987841465,-500.0,0.00055616,120]
[321219890,1711987841475,-500.0,0.00055616,120]
[321219892,1711987841484,-500.0,0.00055616,120]
[321219894,1711987841493,-811.44,0.00055616,120]
[321219896,1711987841502,-500.0,0.00055616,120]
[321219898,1711987841511,-500.0,0.00055616,120]
[321219900,1711987841521,-514.1,0.00055616,120]
[321219902,1711987841530,-199.49692087,0.00055616,120]
[321219904,1711987841539,-500.0,0.00055616,120]
[321219905,1711987841548,-500.0,0.00055616,120]
[321219906,1711987841557,-609.6,0.00055616,120]
[321219907,1711987841566,-500.0,0.00055616,120]
[321219908,1711987841576,-500.0,0.00055616,120]
[321219909,1711987841588,-586.06,0.00055616,120]
[321219910,1711987841597,-500.0,0.00055616,120]
[321219911,1711987841606,-500.0,0.00055616,120]
[321219913,1711987841617,-500.0,0.00055616,120]
[321219915,1711987841631,-500.0,0.00055616,120]
[321219917,1711987841640,-500.0,0.00055616,120]
[321219919,1711987841649,-511.14399201,0.00055616,120]
[321219921,1711987841659,-1010.61,0.00055616,120]
[321219923,1711987841668,-500.0,0.00055616,120]
[321219925,1711987841677,-500.0,0.00055616,120]
[321219927,1711987841687,-405.84,0.00055616,120]
[321219929,1711987841696,-500.0,0.00055616,120]
[321219931,1711987841707,-500.0,0.00055616,120]
[321219933,1711987841716,-555.00886972,0.00055616,120]
[321219935,1711987841726,-500.0,0.00055616,120]
[321219937,1711987841735,-500.0,0.00055616,120]
[321219939,1711987841744,-831.92,0.00055616,120]
[321219941,1711987841753,-165.03,0.000557,30]
[321219943,1711987841763,-166.11,0.000557,14]
[321219945,1711987841772,-1237.413,0.0005577,120]
[321219947,1711987841781,-889.22087446,0.0005579,2]
[321219950,1711987841801,-500.0,0.0005589,120]
[321219952,1711987841811,-500.0,0.0005589,120]
[321219955,1711987841821,-473.0295299,0.0005589,120]
[321219957,1711987841832,-500.0,0.0005589,120]
[321219959,1711987841841,-500.0,0.0005589,120]
[321219961,1711987841850,-500.0,0.0005589,120]
[321219963,1711987841859,-688.54,0.0005589,120]
[321219965,1711987841869,-500.0,0.0005589,120]
[321219967,1711987841878,-500.0,0.0005589,120]
[321219969,1711987841888,-500.0,0.0005589,120]
[321219971,1711987841898,-811.44,0.0005589,120]
[321219973,1711987841908,-342.04,0.0005589,120]
[321219975,1711987841917,-500.0,0.0005589,120]
[321219977,1711987841926,-514.1,0.0005589,120]
[321219979,1711987841936,-500.0,0.0005589,120]
[321219981,1711987841946,-500.0,0.0005589,120]
[321219983,1711987841955,-500.0,0.0005589,120]
[321219985,1711987841966,-500.0,0.0005589,120]
[321219987,1711987841976,-586.06,0.0005589,120]
[321219989,1711987841986,-500.0,0.0005589,120]
[321219991,1711987841996,-500.0,0.0005589,120]
[321219993,1711987842006,-404.02,0.0005589,120]
[321219995,1711987842015,-500.0,0.0005589,120]
[321219997,1711987842024,-500.0,0.0005589,120]
[321219999,1711987842034,-1010.61,0.0005589,120]
[321220001,1711987842044,-500.0,0.0005589,120]
[321220003,1711987842053,-500.0,0.0005589,120]
[321220005,1711987842063,-500.0,0.0005589,120]
[321220007,1711987842073,-500.0,0.0005589,120]
[321220009,1711987842082,-500.0,0.0005589,120]
[321220012,1711987842092,-500.0,0.0005589,120]
[321220014,1711987842101,-831.92,0.0005589,120]
[321220016,1711987842111,-500.0,0.00056,120]
[321220018,1711987842121,-151.0,0.00056055,120]
[321220020,1711987842131,-1852.76989265,0.0005607,2]
[321220022,1711987842140,-209.25,0.00056164,120]
[321220024,1711987842150,-500.0,0.00056164,120]
[321220026,1711987842159,-500.0,0.00056164,120]
[321220028,1711987842168,-290.44,0.00056164,120]
[321220030,1711987842178,-500.0,0.00056164,120]
[321220032,1711987842187,-688.54,0.00056164,120]
[321220034,1711987842197,-500.0,0.00056164,120]
[321220036,1711987842206,-500.0,0.00056164,120]
[321220038,1711987842216,-500.0,0.00056164,120]
[321220040,1711987842225,-811.44,0.00056164,120]
[321220042,1711987842239,-500.0,0.00056164,120]
[321220044,1711987842248,-514.1,0.00056164,120]
[321220047,1711987842258,-500.0,0.00056164,120]
[321220049,1711987842267,-500.0,0.00056164,120]
[321220051,1711987842277,-500.0,0.00056164,120]
[321220053,1711987842286,-500.0,0.00056164,120]
[321220055,1711987842296,-586.06,0.00056164,120]
[321220057,1711987842306,-500.0,0.00056164,120]
[321220059,1711987842316,-500.0,0.00056164,120]
[321220061,1711987842326,-500.0,0.00056164,120]
[321220063,1711987842336,-500.0,0.00056164,120]
[321220065,1711987842345,-1010.61,0.00056164,120]
[321220067,1711987842355,-500.0,0.00056164,120]
[321220069,1711987842365,-500.0,0.00056164,120]
[321220071,1711987842375,-500.0,0.00056164,120]
[321220073,1711987842385,-500.0,0.00056164,120]
[321220075,1711987842395,-490.05876508,0.00056164,120]
[321220077,1711987842404,-831.92,0.00056164,120]
[321220079,1711987842414,-166.66666667,0.00056164,120]
[321220081,1711987842425,-1208.0,0.00056312,120]
[321220083,1711987842434,-1178.0,0.00056312,120]
[321220085,1711987842444,-5432.929,0.00056312,120]
[321220087,1711987842457,-154.39,0.000564,8]
[321220090,1711987842467,-388.37,0.000564,8]
[321220092,1711987842476,-388.37,0.000564,8]
[321220094,1711987842486,-388.37,0.000564,8]
[321220096,1711987842496,-388.37,0.000564,8]
[321220098,1711987842506,-388.37,0.000564,8]
[321220100,1711987842519,-388.37,0.000564,8]
[321220102,1711987842528,-388.37,0.000564,8]
[321220104,1711987842538,-388.37,0.000564,8]
[321220106,1711987842548,-388.37,0.000564,8]
[321220108,1711987842558,-388.37,0.000564,8]
[321220111,1711987842568,-388.37,0.000564,8]
[321220113,1711987842579,-388.37,0.000564,8]
[321220115,1711987842589,-388.37,0.000564,8]
[321220117,1711987842599,-388.37,0.000564,8]
[321220120,1711987842609,-388.37,0.000564,8]
[321220122,1711987842625,-388.37,0.000564,8]
[321220124,1711987842635,-388.37,0.000564,8]
[321220126,1711987842645,-388.37,0.000564,8]
[321220128,1711987842655,-388.37,0.000564,8]
[321220130,1711987842664,-388.37,0.000564,8]
[321220132,1711987842673,-500.0,0.00056438,120]
[321220134,1711987842683,-500.0,0.00056438,120]
[321220136,1711987842692,-500.0,0.00056438,120]
[321220138,1711987842703,-688.54,0.00056438,120]
[321220140,1711987842713,-500.0,0.00056438,120]
[321220142,1711987842724,-500.0,0.00056438,120]
[321220144,1711987842733,-500.0,0.00056438,120]
[321220146,1711987842743,-811.44,0.00056438,120]
[321220148,1711987842752,-500.0,0.00056438,120]
[321220150,1711987842762,-514.1,0.00056438,120]
[321220152,1711987842771,-500.0,0.00056438,120]
[321220154,1711987842781,-500.0,0.00056438,120]
[321220157,1711987842795,-500.0,0.00056438,120]
[321220159,1711987842804,-500.0,0.00056438,120]
[321220161,1711987842814,-586.06,0.00056438,120]
[321220163,1711987842825,-500.0,0.00056438,120]
[321220165,1711987842834,-500.0,0.00056438,120]
[321220167,1711987842843,-500.0,0.00056438,120]
[321220169,1711987842853,-500.0,0.00056438,120]
[321220171,1711987842862,-500.0,0.00056438,120]
[321220173,1711987842871,-1010.61,0.00056438,120]
[321220175,1711987842881,-500.0,0.00056438,120]
[321220177,1711987842890,-500.0,0.00056438,120]
[321220179,1711987842899,-500.0,0.00056438,120]
[321220181,1711987842909,-2431.2,0.000567,117]
[321220183,1711987842919,-500.0,0.00056712,120]
[321220185,1711987842928,-500.0,0.00056712,120]
[321220187,1711987842937,-500.0,0.00056712,120]
[321220189,1711987842947,-688.54,0.00056712,120]
[321220191,1711987842957,-500.0,0.00056712,120]
[321220193,1711987842966,-500.0,0.00056712,120]
[321220195,1711987842975,-500.0,0.00056712,120]
[321220197,1711987842985,-811.44,0.00056712,120]
[321220199,1711987842994,-500.0,0.00056712,120]
[321220201,1711987843003,-514.1,0.00056712,120]
[321220204,1711987843013,-500.0,0.00056712,120]
[321220206,1711987843022,-500.0,0.00056712,120]
[321220208,1711987843032,-360.2,0.00056712,120]
[321220213,1711987843051,-500.0,0.00056712,120]
[321220215,1711987843065,-586.06,0.00056712,120]
[321220217,1711987843078,-500.0,0.00056712,120]
[321220220,1711987843090,-296.03236565,0.00056712,120]
[321220222,1711987843102,-500.0,0.00056712,120]
[321220224,1711987843114,-500.0,0.00056712,120]
[321220226,1711987843135,-1010.61,0.00056712,120]
[321220228,1711987843146,-500.0,0.00056712,120]
[321220230,1711987843157,-632.82855114,0.00056712,120]
[321220232,1711987843168,-500.0,0.00056712,120]
[321220234,1711987843178,-500.0,0.00056712,120]
[321220236,1711987843189,-198.57194492,0.00056983,4]
[321220239,1711987843200,-500.0,0.00056986,120]
[321220241,1711987843211,-500.0,0.00056986,120]
[321220243,1711987843222,-500.0,0.00056986,120]
[321220245,1711987843235,-688.54,0.00056986,120]
[321220248,1711987843247,-500.0,0.00056986,120]
[321220250,1711987843257,-342.27592549,0.00056986,120]
[321220252,1711987843269,-500.0,0.00056986,120]
[321220254,1711987843280,-811.44,0.00056986,120]
[321220256,1711987843291,-500.0,0.00056986,120]
[321220258,1711987843302,-514.1,0.00056986,120]
[321220260,1711987843314,-500.0,0.00056986,120]
[321220261,1711987843325,-500.0,0.00056986,120]
[321220262,1711987843337,-500.0,0.00056986,120]
[321220263,1711987843348,-586.06,0.00056986,120]
[321220264,1711987843359,-500.0,0.00056986,120]
[321220265,1711987843371,-500.0,0.00056986,120]
[321220266,1711987843382,-269.32,0.00056986,120]
[321220268,1711987843392,-1010.61,0.00056986,120]
[321220270,1711987843401,-445.12181112,0.00056986,120]
[321220272,1711987843411,-500.0,0.00056986,120]
[321220274,1711987843421,-500.0,0.00056986,120]
[321220276,1711987843432,-1000.0,0.00057129,120]
[321220278,1711987843443,-160.60706037,0.00057214,120]
[321220280,1711987843455,-247.250981,0.00057238,30]
[321220283,1711987843466,-188.460668,0.00057238,30]
[321220285,1711987843476,-500.0,0.0005726,120]
[321220287,1711987843487,-500.0,0.0005726,120]
[321220289,1711987843499,-500.0,0.0005726,120]
[321220291,1711987843509,-688.54,0.0005726,120]
[321220294,1711987843520,-520.84997615,0.0005726,120]
[321220296,1711987843530,-302.0,0.0005726,120]
[321220298,1711987843540,-811.44,0.0005726,120]
[321220299,1711987843550,-500.0,0.0005726,120]
[321220300,1711987843561,-514.1,0.0005726,120]
[321220301,1711987843572,-500.0,0.0005726,120]
[321220302,1711987843587,-500.0,0.0005726,120]
[321220305,1711987843610,-500.0,0.0005726,120]
[321220308,1711987843626,-586.06,0.0005726,120]
[321220310,1711987843637,-500.0,0.0005726,120]
[321220312,1711987843648,-500.0,0.0005726,120]
[321220314,1711987843659,-1010.61,0.0005726,120]
[321220316,1711987843669,-500.0,0.0005726,120]
[321220318,1711987843680,-500.0,0.0005726,120]
[321220321,1711987843694,-151.0,0.00057397,120]
[321220323,1711987843708,-176.99375891,0.00057447,120]
[321220325,1711987843720,-159.41,0.00057498,120]
[321220328,1711987843732,-4848.74232448,0.000575,120]
[321220330,1711987843743,-500.0,0.00057534,120]
[321220332,1711987843754,-500.0,0.00057534,120]
[321220334,1711987843766,-500.0,0.00057534,120]
[321220337,1711987843783,-688.54,0.00057534,120]
[321220339,1711987843794,-811.44,0.00057534,120]
[321220341,1711987843805,-500.0,0.00057534,120]
[321220343,1711987843817,-514.1,0.00057534,120]
[321220344,1711987843835,-500.0,0.00057534,120]
[321220345,1711987843846,-500.0,0.00057534,120]
[321220346,1711987843857,-246.61,0.00057534,120]
[321220347,1711987843868,-586.06,0.00057534,120]
[321220348,1711987843878,-500.0,0.00057534,120]
[321220349,1711987843890,-500.0,0.00057534,120]
[321220350,1711987843902,-1010.61,0.00057534,120]
[321220351,1711987843913,-500.0,0.00057534,120]
[321220352,1711987843925,-500.0,0.00057534,120]
[321220353,1711987843937,-563.70078721,0.00057534,120]
[321220354,1711987843949,-500.0,0.0005759,2]
[321220355,1711987843961,-166.66666667,0.00057616,120]
[321220356,1711987843973,-557.55,0.00057632,2]
[321220357,1711987843985,-152.59,0.00057644,2]
[321220358,1711987843997,-154.47720026,0.00057772,120]
[321220359,1711987844009,-11443.10383179,0.00057788,14]
[321220361,1711987844021,-11443.10383179,0.0005779,14]
[321220363,1711987844032,-3045.31487664,0.0005779,14]
[321220365,1711987844043,-11443.10383179,0.00057794,14]
[321220367,1711987844054,-3045.31487664,0.00057799,14]
[321220369,1711987844065,-165.03,0.000578,30]
[321220371,1711987844075,-166.11,0.000578,14]
[321220374,1711987844088,-3045.31487664,0.00057801,14]
[321220376,1711987844099,-11443.10383179,0.00057803,14]
[321220378,1711987844109,-157.01297015,0.00057804,120]
[321220380,1711987844119,-11443.10383179,0.00057806,14]
[321220382,1711987844128,-500.0,0.00057808,120]
[321220384,1711987844138,-500.0,0.00057808,120]
[321220386,1711987844148,-500.0,0.00057808,120]
[321220388,1711987844158,-688.54,0.00057808,120]
[321220390,1711987844168,-811.44,0.00057808,120]
[321220392,1711987844178,-500.0,0.00057808,120]
[321220395,1711987844189,-514.1,0.00057808,120]
[321220397,1711987844200,-500.0,0.00057808,120]
[321220399,1711987844210,-619.0,0.00057808,120]
[321220401,1711987844222,-586.06,0.00057808,120]
[321220403,1711987844235,-500.0,0.00057808,120]
[321220405,1711987844245,-500.0,0.00057808,120]
[321220408,1711987844256,-1010.61,0.00057808,120]
[321220410,1711987844266,-500.0,0.00057808,120]
[321220412,1711987844279,-498.13055669,0.00057808,120]
[321220414,1711987844290,-3045.31487664,0.00057813,14]
[321220416,1711987844301,-11443.10383179,0.00057824,14]
[321220419,1711987844312,-3045.31487664,0.00057839,14]
[321220421,1711987844323,-3045.31487664,0.00057842,14]
[321220423,1711987844335,-3045.31487664,0.00057884,14]
[321220425,1711987844346,-11443.10383179,0.00057887,14]
[321220427,1711987844356,-165.40642136,0.0005789,120]
[321220429,1711987844366,-247.250981,0.00057954,30]
[321220432,1711987844376,-8151.75925938,0.00058,30]
[321220434,1711987844387,-151.0,0.00058,120]
[321220436,1711987844397,-151.87,0.00058002,120]
[321220438,1711987844407,-166.52535599,0.00058049,120]
[321220440,1711987844417,-889.91,0.00058049,30]
[321220442,1711987844428,-500.0,0.00058082,120]
[321220444,1711987844438,-500.0,0.00058082,120]
[321220446,1711987844448,-623.27552801,0.00058082,120]
[321220448,1711987844458,-688.54,0.00058082,120]
[321220450,1711987844468,-811.44,0.00058082,120]
[321220453,1711987844479,-500.0,0.00058082,120]
[321220455,1711987844489,-514.1,0.00058082,120]
[321220457,1711987844500,-500.0,0.00058082,120]
[321220459,1711987844511,-586.06,0.00058082,120]
[321220461,1711987844523,-214.56,0.00058082,120]
[321220463,1711987844535,-500.0,0.00058082,120]
[321220466,1711987844547,-1010.61,0.00058082,120]
[321220468,1711987844559,-500.0,0.00058082,120]
[321220470,1711987844573,-308.719,0.00058127,120]
[321220472,1711987844586,-150.0,0.00058127,120]
[321220475,1711987844597,-377.94,0.00058127,120]
[321220477,1711987844608,-2039.461,0.00058127,120]
[321220479,1711987844620,-174.52600393,0.00058146,58]
[321220482,1711987844637,-154.97192955,0.00058168,120]
[321220484,1711987844649,-158.8,0.000582,30]
[321220486,1711987844661,-326.80187265,0.000582,2]
[321220489,1711987844673,-490.36643496,0.000582,30]
[321220491,1711987844684,-4789.19966722,0.000582,2]
[321220493,1711987844694,-461.07273652,0.000582,120]
[321220495,1711987844708,-150.0,0.000583,13]
[321220497,1711987844718,-153.21937786,0.00058337,120]
[321220500,1711987844729,-500.0,0.00058356,120]
[321220502,1711987844740,-500.0,0.00058356,120]
[321220504,1711987844752,-688.54,0.00058356,120]
[321220506,1711987844763,-811.44,0.00058356,120]
[321220509,1711987844774,-380.46168829,0.00058356,120]
[321220511,1711987844785,-514.1,0.00058356,120]
[321220513,1711987844796,-324.96,0.00058356,120]
[321220515,1711987844806,-586.06,0.00058356,120]
[321220517,1711987844817,-500.0,0.00058356,120]
[321220520,1711987844827,-1010.61,0.00058356,120]
[321220522,1711987844838,-231.19,0.00058356,120]
[321220524,1711987844849,-916.0,0.000584,9]
[321220526,1711987844859,-150.0,0.000584,112]
[321220528,1711987844869,-155.97839752,0.00058413,120]
[321220530,1711987844880,-155.90767022,0.00058493,120]
[321220533,1711987844890,-500.0,0.0005863,120]
[321220534,1711987844901,-500.0,0.0005863,120]
[321220535,1711987844911,-688.54,0.0005863,120]
[321220536,1711987844921,-811.44,0.0005863,120]
[321220537,1711987844932,-514.1,0.0005863,120]
[321220538,1711987844943,-586.06,0.0005863,120]
[321220539,1711987844953,-500.0,0.0005863,120]
[321220540,1711987844963,-1010.61,0.0005863,120]
[321220543,1711987844974,-155.90767022,0.00058631,120]
[321220545,1711987844986,-165.40642136,0.00058658,120]
[321220547,1711987844996,-221.15,0.00058658,120]
[321220549,1711987845007,-247.250981,0.00058669,30]
[321220551,1711987845017,-1852.76989265,0.00058677,2]
[321220553,1711987845027,-156.93753585,0.00058729,77]
[321220555,1711987845037,-151.0,0.0005874,120]
[321220557,1711987845047,-154.39,0.000588,9]
[321220559,1711987845058,-154.39,0.000588,9]
[321220562,1711987845068,-388.37,0.000588,9]
[321220564,1711987845078,-388.37,0.000588,9]
[321220566,1711987845089,-388.37,0.000588,9]
[321220568,1711987845099,-388.37,0.000588,9]
[321220570,1711987845109,-388.37,0.000588,9]
[321220573,1711987845130,-388.37,0.000588,9]
[321220575,1711987845141,-388.37,0.000588,9]
[321220577,1711987845151,-388.37,0.000588,9]
[321220580,1711987845161,-388.37,0.000588,9]
[321220582,1711987845175,-388.37,0.000588,9]
[321220584,1711987845185,-388.37,0.000588,9]
[321220586,1711987845195,-388.37,0.000588,9]
[321220588,1711987845205,-388.37,0.000588,9]
[321220590,1711987845216,-388.37,0.000588,9]
[321220593,1711987845226,-388.37,0.000588,9]
[321220595,1711987845236,-388.37,0.000588,9]
[321220597,1711987845246,-388.37,0.000588,9]
[321220599,1711987845256,-388.37,0.000588,9]
[321220601,1711987845266,-388.37,0.000588,9]
[321220603,1711987845276,-388.37,0.000588,9]
[321220605,1711987845286,-150.0,0.000588,13]
[321220607,1711987845295,-62034.30809307,0.0005888,7]
[321220635,1711987845518,-5000.0,0.000589,120]
[321220638,1711987845531,-628.60378886,0.00058904,120]
[321220640,1711987845540,-500.0,0.00058904,120]
[321220642,1711987845550,-688.54,0.00058904,120]
[321220644,1711987845559,-811.44,0.00058904,120]
[321220646,1711987845569,-514.1,0.00058904,120]
[321220648,1711987845579,-586.06,0.00058904,120]
[321220650,1711987845588,-500.0,0.00058904,120]
[321220652,1711987845598,-1010.61,0.00058904,120]
[321220654,1711987845612,-61132.53178898,0.00058922,7]
[321220656,1711987845626,-152.93655063,0.00058947,120]
[321220659,1711987845638,-155.97839752,0.00058982,120]
[321220661,1711987845647,-302.080246,0.00058998,119]
[321220663,1711987845658,-31464.23007886,0.00059,20]
[321220665,1711987845667,-5000.0,0.00059,60]
[321220667,1711987845676,-166.66666667,0.00059068,120]
[321220669,1711987845685,-500.0,0.00059178,120]
[321220671,1711987845695,-688.54,0.00059178,120]
[321220673,1711987845706,-811.44,0.00059178,120]
[321220675,1711987845716,-514.1,0.00059178,120]
[321220677,1711987845725,-586.06,0.00059178,120]
[321220679,1711987845734,-500.0,0.00059178,120]
[321220681,1711987845744,-1010.61,0.00059178,120]
[321220683,1711987845753,-168.69,0.00059193,2]
[321220685,1711987845762,-1200.0,0.000592,4]
[321220687,1711987845771,-157.01297015,0.00059259,120]
[321220689,1711987845780,-150.0,0.000593,13]
[321220691,1711987845789,-1178.0,0.00059312,120]
[321220693,1711987845798,-247.250981,0.00059385,30]
[321220695,1711987845807,-155.90767022,0.00059385,120]
[321220697,1711987845816,-154.47720026,0.00059394,120]
[321220699,1711987845825,-165.03,0.000594,30]
[321220701,1711987845835,-166.11,0.000594,14]
[321220703,1711987845844,-500.0,0.00059452,120]
[321220705,1711987845853,-688.54,0.00059452,120]
[321220706,1711987845862,-811.44,0.00059452,120]
[321220707,1711987845871,-514.1,0.00059452,120]
[321220708,1711987845880,-586.06,0.00059452,120]
[321220709,1711987845889,-500.0,0.00059452,120]
[321220710,1711987845898,-1010.61,0.00059452,120]
[321220711,1711987845908,-165.40642136,0.00059452,120]
[321220712,1711987845916,-221.14999998,0.00059452,120]
[321220713,1711987845926,-221.15,0.00059452,120]
[321220714,1711987845935,-152.93655063,0.00059493,120]
[321220715,1711987845944,-154.47720026,0.00059508,120]
[321220716,1711987845952,-302.080246,0.00059598,120]
[321220717,1711987845961,-5800.0,0.00059683,18]
[321220718,1711987845971,-5800.0,0.00059691,18]
[321220719,1711987845980,-5800.0,0.000597,18]
[321220720,1711987845989,-500.0,0.00059726,120]
[321220721,1711987845998,-688.54,0.00059726,120]
[321220722,1711987846007,-811.44,0.00059726,120]
[321220723,1711987846016,-514.1,0.00059726,120]
[321220724,1711987846025,-586.06,0.00059726,120]
[321220725,1711987846035,-500.0,0.00059726,120]
[321220726,1711987846044,-1010.61,0.00059726,120]
[321220727,1711987846053,-500.0,0.0005975,90]
[321220728,1711987846062,-291.64816,0.00059798,120]
[321220729,1711987846071,-150.0,0.000598,40]
[321220730,1711987846082,-150.0,0.000598,14]
[321220731,1711987846091,-557.55,0.00059896,2]
[321220732,1711987846100,-268.86,0.000599,120]
[321220733,1711987846110,-200.0,0.000599,40]
[321220734,1711987846119,-1189.43488635,0.000599,120]
[321220735,1711987846128,-1189.43488635,0.000599,120]
[321220736,1711987846137,-1189.43488635,0.000599,120]
[321220737,1711987846147,-1189.43488635,0.000599,120]
[321220738,1711987846157,-1189.43488635,0.000599,120]
[321220739,1711987846166,-1189.43488635,0.000599,120]
[321220740,1711987846175,-1189.43488635,0.000599,120]